bitfinex-derivatives/quotes_ETHF0:USTF0_20251024
["timestamp","ask_amount","ask_price","bid_price","bid_amount"]
[1761294578206,4.9888391,3938.4,3938.3,0.35181]
[1761294579211,4.9888391,3938.4,3938.3,0.00231]
[1761294579410,4.9888391,3938.4,3938.3,0.35181]
[1761294579612,4.9888391,3938.4,3938.3,0.00231]
[1761294580607,4.5318791,3938.4,3938.3,0.56861]
[1761294580806,0.5570791,3938.4,3938.3,1.24408]
[1761294581203,1.3240791,3938.4,3938.3,1.24408]
[1761294581717,0.767,3938.4,3938.3,1.24408]
[1761294582414,1.22396,3938.4,3938.3,0.78711]
[1761294582612,1.22396,3938.4,3938.3,0.00231]
[1761294582806,1.78015953,3938.4,3938.3,0.00231]
[1761294583415,1.78015953,3938.4,3938.3,0.80878]
[1761294584518,1.78015953,3938.4,3938.3,1.02558]
[1761294584911,1.22396,3938.4,3938.3,1.02558]
[1761294585117,0.767,3938.4,3938.3,1.24408]
[1761294585319,1.22396,3938.4,3938.3,1.24408]
[1761294586116,0.89406,3938.4,3938.3,1.24408]
[1761294586816,1.22396,3938.4,3938.3,1.24408]
[1761294588012,0.767,3938.4,3938.3,1.24408]
[1761294589016,1.22396,3938.4,3938.3,1.24408]
[1761294590808,4.98832347,3938.4,3938.3,1.24408]
[1761294591317,4.98832347,3938.4,3938.3,0.56861]
[1761294591506,4.98832347,3938.4,3938.3,0.00231]
[1761294592014,5.24361638,3938.4,3938.3,0.00231]
[1761294593212,5.24368391,3938.4,3938.3,0.00231]
[1761294595224,6.14601222,3938.4,3938.3,0.00231]
[1761294596323,5.24368391,3938.4,3938.3,0.00231]
[1761294596918,0.45703,3937.9,3937.8,0.45704]
[1761294597116,1.22403,3937.9,3937.8,0.80654]
[1761294597321,1.78059347,3937.9,3937.8,0.80654]
[1761294597522,1.78059347,3937.9,3937.8,1.02334]
[1761294598028,1.78272077,3937.9,3937.8,1.02546975]
[1761294598222,2.03920563,3937.9,3937.8,1.02546975]
[1761294598819,0.55869077,3937.9,3937.8,1.24396975]
[1761294599214,0.78079077,3937.9,3937.8,1.24396975]
[1761294599416,1.49443854,3937.9,3937.8,1.24396975]
[1761294599618,1.81263854,3937.9,3937.8,1.24396975]
[1761294599814,1.35560854,3937.9,3937.8,1.24396975]
[1761294600220,1.81263854,3937.9,3937.8,1.24396975]
[1761294600430,1.55602077,3937.9,3937.8,1.24396975]
[1761294600728,1.78182077,3937.9,3937.8,0.35162975]
[1761294600920,1.78182077,3937.9,3937.8,0.00212975]
[1761294601722,1.78182077,3937.9,3937.8,0.32202975]
[1761294601916,1.78182077,3937.9,3937.8,0.00212975]
[1761294602923,1.14269,3937.6,3936.5,0.1275]
[1761294603130,3.6565,3936.7,3936.6,1.00288]
[1761294603329,4.21306347,3936.7,3936.6,1.21818]
[1761294603525,1.32346347,3936.7,3936.6,1.21818]
[1761294603928,1.32346347,3936.7,3936.6,1.22101286]
[1761294604225,0.55656347,3936.7,3936.6,1.22101286]
[1761294604532,0.7669,3936.9,3936.8,1.21816]
[1761294604732,2.69118148,3936.9,3936.8,0.761]
[1761294604931,2.94792185,3936.9,3936.8,0.5457]
[1761294605431,2.0425128,3936.9,3936.8,0.5457]
[1761294605629,1.22407,3936.7,3936.6,0.00283286]
[1761294605926,5.33605347,3936.7,3936.6,0.00283286]
[1761294606133,5.8977759,3936.7,3936.6,0.46001286]
[1761294606336,4.99359243,3936.7,3936.6,1.00571286]
[1761294606631,4.99359243,3936.7,3936.6,1.22101286]
[1761294606827,5.25031911,3936.7,3936.6,1.22101286]
[1761294607029,5.25031911,3936.7,3936.6,1.00571286]
[1761294607333,5.25031911,3936.7,3936.6,0.00283286]
[1761294607737,5.24987716,3936.7,3936.6,0.00283286]
[1761294609235,0.45729,3935.7,3935.5,0.45731]
[1761294609425,3.6565,3935.7,3935.6,0.7772]
[1761294609624,4.21741903,3935.7,3935.6,0.7772]
[1761294609825,4.53561903,3935.7,3935.6,1.003]
[1761294610525,4.53561903,3935.7,3935.6,1.00561861]
[1761294611336,3.9747,3935.7,3935.6,1.00561861]
[1761294611842,4.99280983,3935.7,3935.6,0.00261861]
[1761294612028,4.99280983,3935.7,3935.6,0.45991861]
[1761294612729,4.99280983,3935.7,3935.6,0.00261861]
[1761294613331,5.24821137,3935.7,3935.6,0.00261861]
[1761294614734,5.24821137,3935.7,3935.6,0.45991861]
[1761294614937,5.24821137,3935.7,3935.6,0.00261861]
[1761294615138,5.24821137,3935.7,3935.6,0.45991861]
[1761294615436,4.99280983,3935.7,3935.6,0.00261861]
[1761294616234,4.99280983,3935.7,3935.6,0.45991861]
[1761294616834,4.99280983,3935.7,3935.6,0.00261861]
[1761294617035,5.24793569,3935.7,3935.6,0.00261861]
[1761294618539,0.7669,3935.1,3935.0,1.00307]
[1761294618941,1.22426,3935.1,3935.0,1.00307]
[1761294619439,0.76982477,3935.1,3935.0,1.35238758]
[1761294620233,1.22718477,3935.1,3935.0,1.35238758]
[1761294620429,1.22718477,3935.1,3935.0,1.22078758]
[1761294620635,1.22718477,3935.1,3935.0,0.45978758]
[1761294620827,0.45162477,3935.1,3935.0,1.35238758]
[1761294621236,1.01246056,3935.1,3935.0,1.35238758]
[1761294622042,1.46982056,3935.1,3935.0,1.35238758]
[1761294622343,1.78802056,3935.1,3935.0,1.35238758]
[1761294622542,1.78802056,3935.1,3935.0,0.00241758]
[1761294623543,1.78802056,3935.1,3935.0,0.45978758]
[1761294623739,1.78802056,3935.1,3935.0,0.00241758]
[1761294625236,2.04383511,3935.1,3935.0,0.00241758]
[1761294625431,2.04383511,3935.1,3935.0,0.45978758]
[1761294625643,1.58647511,3935.1,3935.0,0.89501758]
[1761294625839,2.04383511,3935.1,3935.0,0.00241758]
[1761294628649,0.7727,3934.6,3934.5,0.99142]
[1761294628849,1.25485034,3934.6,3934.5,1.34312]
[1761294629149,0.25581455,3934.6,3934.5,1.34312]
[1761294629349,0.5514,3934.9,3934.8,0.7781]
[1761294629549,0.47367562,3934.9,3934.8,0.7781]
[1761294629740,1.03566768,3934.9,3934.8,0.7781]
[1761294629942,1.61176768,3934.9,3934.8,0.7781]
[1761294631342,1.26746768,3934.9,3934.8,0.7781]
[1761294631543,0.81876768,3934.9,3934.8,0.7781]
[1761294632138,1.03566768,3934.9,3934.8,0.7781]
[1761294633946,0.81876768,3934.9,3934.8,0.7781]
[1761294634246,1.03566768,3934.9,3934.8,0.7781]
[1761294634557,0.81876768,3934.9,3934.8,0.7781]
[1761294634850,3.2078,3935.2,3934.8,0.7781]
[1761294634851,0.90127211,3935.2,3934.8,5.0]
[1761294635037,3.2078,3936.6,3936.3,0.7781]
[1761294635038,1.35496492,3936.5,3936.3,0.7781]
[1761294635244,1.57186492,3936.5,3936.4,0.7781]
[1761294635438,1.57186492,3936.5,3936.0,0.1397]
[1761294635439,1.35496492,3936.7,3936.6,0.3364]
[1761294635639,4.56276492,3937.0,3936.9,1.01465]
[1761294635943,4.56276492,3937.0,3936.9,1.23525]
[1761294635944,4.00283382,3937.0,3936.9,1.23525]
[1761294636746,4.00283382,3937.0,3936.9,0.5575]
[1761294636951,0.793,3936.7,3936.6,0.67828]
[1761294637143,0.793,3936.7,3936.6,0.2211]
[1761294637544,0.793,3936.7,3936.6,0.5575]
[1761294638341,0.793,3936.5,3936.4,1.0147]
[1761294638644,0.793,3936.5,3936.4,1.2353]
[1761294639751,0.2169,3936.5,3936.4,1.2353]
[1761294641257,0.2169,3936.7,3936.6,1.23528]
[1761294642254,1.25018,3936.6,3936.5,0.7781]
[1761294642553,4.45798,3936.6,3936.5,1.37499]
[1761294643053,4.45798,3936.6,3936.3,0.5575]
[1761294643054,0.80152,3936.4,3936.3,0.5575]
[1761294643244,1.25022,3936.4,3936.3,0.5575]
[1761294643555,3.2078,3936.6,3936.3,0.5575]
[1761294643556,3.4247,3936.6,3936.5,0.45719]
[1761294643754,0.67406,3936.8,3936.7,1.23527]
[1761294644054,0.2169,3936.8,3936.7,1.23527]
[1761294644448,0.793,3936.8,3936.7,1.23527]
[1761294645053,1.25016,3936.8,3936.7,1.23527]
[1761294646850,2.06659196,3936.8,3936.7,1.23527]
[1761294649161,2.06659196,3936.8,3936.7,0.7781]
[1761294649357,1.81329596,3936.8,3936.7,0.7781]
[1761294649760,1.25018,3936.6,3936.5,1.01469]
[1761294649962,1.81331596,3936.6,3936.5,1.01469]
[1761294650257,0.4487,3936.4,3936.3,0.3364]
[1761294650562,1.81334596,3936.4,3936.3,0.79362]
[1761294650862,1.35613596,3936.4,3936.3,1.23532]
[1761294651365,1.01183596,3936.4,3936.3,1.23532]
[1761294652068,1.35613596,3936.4,3936.3,1.23532]
[1761294653266,0.56313596,3936.4,3936.3,1.23532]
[1761294653460,0.21893382,3937.0,3936.9,1.23525]
[1761294653658,2.06969371,3937.0,3936.9,0.7781]
[1761294653867,1.25016,3936.8,3936.7,1.01466]
[1761294654061,5.02185106,3936.8,3936.7,1.01466]
[1761294654263,4.56469106,3936.8,3936.7,1.01466]
[1761294654465,4.56469106,3936.8,3936.7,1.23526]
[1761294654868,5.02185106,3936.8,3936.7,1.01466]
[1761294656268,5.02185106,3936.8,3936.7,1.23526]
[1761294656470,4.67755106,3936.8,3936.7,1.23526]
[1761294657159,5.02185106,3936.8,3936.7,1.23526]
[1761294657871,4.67755106,3936.8,3936.7,1.23526]
[1761294658366,5.02185106,3936.8,3936.7,1.23526]
[1761294658670,5.02185106,3936.8,3936.7,1.23527]
[1761294659168,5.27575604,3936.8,3936.7,1.23527]
[1761294660574,4.93145604,3936.8,3936.7,1.23527]
[1761294660968,4.47429604,3936.8,3936.7,1.23527]
[1761294661578,4.47429604,3936.8,3936.5,0.1397]
[1761294661579,0.45717,3936.7,3936.6,0.45718]
[1761294661767,0.45717,3936.7,3936.0,1.28283]
[1761294661768,0.68831,3936.4,3936.3,0.5629]
[1761294661969,1.27009604,3936.4,3936.3,1.23232]
[1761294662570,0.7815,3935.7,3935.6,0.4337]
[1761294662773,0.2212,3935.2,3935.1,0.89106]
[1761294662973,0.7815,3935.2,3935.1,0.89106]
[1761294663168,4.55319106,3935.2,3935.1,1.23246]
[1761294663666,5.01053106,3935.2,3935.1,1.23246]
[1761294663862,1.34539106,3935.2,3935.1,1.23246]
[1761294664069,2.05683338,3935.2,3935.1,1.23246]
[1761294664468,2.05683338,3935.2,3935.1,0.7751]
[1761294664670,2.05683338,3935.2,3935.1,1.23246]
[1761294664970,1.59949338,3935.2,3935.1,1.23246]
[1761294665172,1.03919338,3935.2,3935.1,1.23246]
[1761294666367,0.56389106,3935.2,3935.1,1.23246]
[1761294667170,3.429,3936.0,3935.9,1.23236]
[1761294667373,4.24501736,3936.0,3935.9,1.23236]
[1761294667572,4.47611736,3936.0,3935.9,1.23236]
[1761294667774,4.80531736,3936.0,3935.9,1.23236]
[1761294668264,4.47611736,3936.0,3935.9,1.23236]
[1761294668669,4.02381736,3936.0,3935.9,1.23236]
[1761294669072,4.24501736,3936.0,3935.9,1.23236]
[1761294669279,4.80531736,3936.0,3935.9,1.23236]
[1761294669479,5.39106736,3936.0,3935.9,0.45726]
[1761294669774,0.7815,3935.8,3935.7,1.02018]
[1761294669970,1.59751736,3935.8,3935.7,1.02018]
[1761294670577,1.59751736,3935.8,3935.7,1.23238]
[1761294670978,2.05479736,3935.8,3935.7,1.23238]
[1761294671475,1.26831736,3935.8,3935.7,1.23238]
[1761294671680,0.78340382,3935.8,3935.7,1.23238]
[1761294672177,0.56220382,3935.8,3935.7,1.23238]
[1761294672380,3.429,3936.0,3935.9,0.3414]
[1761294672580,4.24573117,3936.0,3935.9,0.7751]
[1761294672782,4.24573117,3936.0,3935.9,1.23236]
[1761294673081,4.80603117,3936.0,3935.9,1.23236]
[1761294674077,0.3292,3935.6,3935.1,0.3414]
[1761294674286,0.2212,3935.2,3935.1,0.89106]
[1761294674469,0.7838949,3935.2,3935.1,0.89106]
[1761294674875,0.7838949,3935.2,3935.1,1.23246]
[1761294675183,1.3441949,3935.2,3935.1,1.23246]
[1761294676179,1.3441949,3935.2,3935.1,1.02026]
[1761294677072,1.3441949,3935.2,3935.1,1.23246]
[1761294678074,1.3441949,3935.2,3935.1,0.45736]
[1761294678272,1.3441949,3935.2,3934.5,10.27160002]
[1761294678273,1.23891,3934.6,3934.5,0.34373002]
[1761294678475,5.00865189,3934.6,3934.5,0.56523002]
[1761294678679,6.17026283,3934.6,3934.5,0.00233002]
[1761294679280,10.3828081,3934.6,3933.3,3.4293]
[1761294679482,0.3292,3933.3,3932.9,0.3414]
[1761294679678,3.2078,3933.7,3933.1,0.2122]
[1761294679679,0.78247593,3933.2,3933.1,0.2122]
[1761294679893,0.5504,3933.5,3933.4,0.4337]
[1761294680186,0.2212,3933.5,3933.4,0.7751]
[1761294680389,0.00240713,3933.5,3933.4,0.77729832]
[1761294680878,0.45470713,3933.5,3933.4,0.77729832]
[1761294681081,0.78390713,3933.5,3933.4,0.77729832]
[1761294681289,0.78390713,3933.5,3933.4,0.56509832]
[1761294681478,1.34418435,3933.5,3933.4,0.56509832]
[1761294681680,0.78390713,3933.5,3933.4,0.56509832]
[1761294681991,1.34409792,3933.5,3933.4,0.56509832]
[1761294682488,1.34409792,3933.5,3933.4,0.77729832]
[1761294682680,0.78390713,3933.5,3933.4,0.77729832]
[1761294684588,0.45470713,3933.5,3933.4,0.77729832]
[1761294685088,0.45470713,3933.5,3933.4,0.00219832]
[1761294685089,0.91240713,3933.5,3933.4,0.00219832]
[1761294686390,1.47082951,3933.5,3933.4,0.00219832]
[1761294687294,0.5504,3932.9,3932.8,0.30667282]
[1761294687583,0.5504,3933.2,3933.1,0.4337]
[1761294688192,0.5504,3933.2,3933.1,0.43648595]
[1761294689381,0.5504,3933.2,3933.1,0.77058595]
[1761294690190,0.7796,3933.2,3933.1,0.43648595]
[1761294690484,0.7796,3933.2,3933.1,0.00278595]
[1761294690689,1.23718,3933.2,3933.1,0.00278595]
[1761294691084,0.7796,3933.2,3933.1,0.00278595]
[1761294691694,0.7796,3933.2,3933.1,0.22848595]
[1761294693394,0.7796,3933.2,3933.1,0.79188595]
[1761294694194,0.7796,3933.2,3933.1,0.45778595]
[1761294694496,0.7796,3933.2,3933.1,0.79188595]
[1761294694696,0.7796,3933.2,3933.1,1.24947595]
[1761294695395,0.5504,3933.2,3933.1,1.24947595]
[1761294695593,0.3292,3933.2,3933.1,1.24947595]
[1761294695798,0.34490713,3933.5,3933.4,1.24665]
[1761294695989,0.00240713,3933.5,3933.4,1.24665]
[1761294698602,0.93860713,3933.5,3933.4,0.45755]
[1761294698999,0.93860713,3933.5,3933.4,0.68325]
[1761294700097,0.93860713,3933.5,3933.4,0.91255]
[1761294700296,0.00240713,3933.5,3933.4,1.24665]
[1761294700500,0.00240713,3933.5,3933.4,4.45445]
[1761294702198,1.24951932,3934.6,3934.4,0.455]
[1761294702402,1.24951932,3934.6,3934.5,1.24653]
[1761294702403,0.5692,3934.6,3934.5,1.24653]
[1761294702597,0.80035256,3934.6,3934.5,1.24653]
[1761294702800,0.3425,3934.9,3934.8,0.45739]
[1761294703006,3.777,3935.1,3935.0,0.3341]
[1761294703206,4.35307884,3935.1,3935.0,1.24647]
[1761294703406,3.78387884,3935.1,3935.0,1.24647]
[1761294703600,0.57607884,3935.1,3935.0,1.32727]
[1761294703800,0.80074239,3935.1,3935.0,0.45737]
[1761294703999,1.37478929,3935.1,3935.0,0.45737]
[1761294704508,1.37478929,3935.1,3935.0,0.68307]
[1761294704708,1.37478929,3935.1,3935.0,0.91237]
[1761294704908,1.37478929,3935.1,3935.0,1.24647]
[1761294705612,1.37478929,3935.1,3935.0,0.91237]
[1761294706408,1.37478929,3935.1,3935.0,1.24647]
[1761294707408,0.57638929,3935.1,3935.0,1.24647]
[1761294707913,0.91888929,3935.1,3935.0,1.24647]
[1761294708113,1.14558929,3935.1,3935.0,1.24647]
[1761294709319,0.57154239,3935.1,3935.0,1.24647]
[1761294710215,0.57154239,3935.1,3935.0,0.45737]
[1761294710216,0.80074239,3935.1,3935.0,0.45737]
[1761294710718,0.80074239,3935.1,3935.0,0.68307]
[1761294712222,0.80074239,3935.1,3935.0,0.91237]
[1761294712632,0.80074239,3935.1,3935.0,0.68307]
[1761294712920,0.80074239,3935.1,3935.0,0.45737]
[1761294713924,0.80074239,3935.1,3935.0,0.68307]
[1761294714621,0.80074239,3935.1,3935.0,0.91237]
[1761294714820,0.57154239,3935.1,3935.0,1.24647]
[1761294715321,0.80074239,3935.1,3935.0,1.24647]
[1761294715624,0.80074239,3935.1,3935.0,0.91237]
[1761294716528,0.80074239,3935.1,3935.0,1.24647]
[1761294717823,0.80074239,3935.1,3935.0,10.30547]
[1761294718622,0.80074239,3935.1,3935.0,9.96737]
[1761294719426,3.2078,3936.0,3935.9,0.459]
[1761294719717,3.2078,3936.0,3935.5,0.1277]
[1761294719718,4.37208944,3936.0,3935.7,6.902]
[1761294719923,0.7803,3935.3,3935.2,0.68334]
[1761294720115,0.7803,3935.3,3935.2,1.25564]
[1761294720319,0.3286,3935.3,3935.2,10.31064]
[1761294720517,0.56252569,3935.3,3935.2,10.31268313]
[1761294721224,0.78262569,3935.3,3935.2,9.74038313]
[1761294721519,0.78262569,3935.3,3935.2,0.45938313]
[1761294722619,1.13538087,3935.3,3935.2,1.25768313]
[1761294722822,0.00232569,3935.3,3935.2,1.25768313]
[1761294723120,0.00232569,3935.3,3935.2,4.54811508]
[1761294723726,0.00232569,3935.3,3935.2,1.25768313]
[1761294723916,0.00232569,3935.3,3935.2,10.32368313]
[1761294724116,0.00232569,3935.3,3935.2,1.25768313]
[1761294724326,0.33092569,3935.3,3935.2,10.32368313]
[1761294724525,0.00232569,3935.3,3935.2,10.32368313]
[1761294727228,0.00232569,3935.3,3935.2,10.32168313]
[1761294727429,3.6595,3936.3,3936.2,0.459]
[1761294727628,4.56092123,3936.3,3936.2,0.459]
[1761294727925,4.5609191,3936.3,3936.2,0.226]
[1761294728519,4.5609191,3936.3,3935.5,0.1277]
[1761294728520,0.7803,3935.9,3935.5,0.3393]
[1761294728726,0.7803,3935.7,3935.6,6.025]
[1761294728925,1.3531191,3935.7,3935.6,6.025]
[1761294729230,1.3531191,3935.7,3935.6,9.522]
[1761294729721,1.3531191,3935.7,3935.2,0.34134313]
[1761294729925,1.23763,3935.3,3935.2,0.00204313]
[1761294730121,1.8104491,3935.3,3935.2,6.40504313]
[1761294730328,2.06454476,3935.3,3935.2,0.00204313]
[1761294730524,2.97156408,3935.3,3935.2,0.00204313]
[1761294731331,2.06454476,3935.3,3935.2,0.00204313]
[1761294733730,0.45745,3934.3,3934.1,0.45747]
[1761294733920,0.45745,3934.3,3934.2,9.521]
[1761294733921,0.90915,3934.3,3934.2,9.521]
[1761294734126,1.4827469,3934.3,3934.2,0.459]
[1761294734322,1.4827469,3934.3,3934.2,9.353]
[1761294734525,1.8113469,3934.3,3934.2,0.459]
[1761294734725,1.8113469,3934.3,3934.2,0.46097329]
[1761294734928,2.06541451,3934.3,3934.2,0.00197329]
[1761294735836,3.42776322,3934.3,3934.2,0.00197329]
[1761294736241,2.06541451,3934.3,3934.2,0.00197329]
[1761294737132,2.06541451,3934.3,3933.2,0.68357]
[1761294737133,0.4517,3933.3,3933.2,0.68357]
[1761294737343,1.23787,3933.3,3933.2,0.226]
[1761294737734,1.81047723,3933.3,3933.2,0.226]
[1761294738141,2.06419062,3933.3,3933.2,0.226]
[1761294738439,2.06397303,3933.3,3933.2,0.00203644]
[1761294738641,2.06677086,3933.3,3933.2,0.00203644]
[1761294739335,1.81327506,3933.3,3933.2,0.00203644]
[1761294739535,1.81327506,3933.3,3933.2,0.22803644]
[1761294739739,1.35570506,3933.3,3933.2,0.91861644]
[1761294739941,1.81327506,3933.3,3933.2,0.91861644]
[1761294740136,1.81327506,3933.3,3933.2,0.46103644]
[1761294740340,1.81327506,3933.3,3933.2,0.22803644]
[1761294740741,1.81327506,3933.3,3933.2,0.00203644]
[1761294741535,1.81327506,3933.3,3931.5,0.1277]
[1761294741536,1.04856,3932.5,3932.4,0.233]
[1761294741732,0.5909,3932.5,3932.4,0.91667]
[1761294741939,0.5909,3932.5,3932.4,1.25597]
[1761294742141,0.9195,3932.5,3932.4,0.91667]
[1761294742537,3.2078,3932.7,3932.4,0.459]
[1761294742738,0.56299783,3933.3,3933.2,1.25588]
[1761294743246,0.00279783,3933.3,3933.2,1.25588]
[1761294743749,0.00279783,3933.3,3933.2,1.25880147]
[1761294744550,0.00279783,3933.3,3933.2,4.46660147]
[1761294744842,0.56299783,3933.3,3933.2,1.25880147]
[1761294745233,0.78309783,3933.3,3933.2,1.25880147]
[1761294745848,1.24066783,3933.3,3933.2,0.00292147]
[1761294746046,0.78309783,3933.3,3933.2,1.25880147]
[1761294749647,0.78309783,3933.3,3933.2,0.91950147]
[1761294749948,1.24066783,3933.3,3933.2,0.68650147]
[1761294750153,0.78309783,3933.3,3933.2,0.68650147]
[1761294750341,0.78309783,3933.3,3933.2,0.90200147]
[1761294750650,0.78309783,3933.3,3933.2,0.46050147]
[1761294751043,0.78309783,3933.3,3933.2,0.68810147]
[1761294751848,0.00279783,3933.3,3933.2,1.23790147]
[1761294752749,0.54509783,3933.3,3933.2,1.23790147]
[1761294753652,0.77899783,3933.3,3933.2,1.23790147]
[1761294756349,0.54509783,3933.3,3933.2,1.23790147]
[1761294757356,1.23656783,3933.3,3933.2,0.23052147]
[1761294757551,1.23656783,3933.3,3933.2,0.00292147]
[1761294757858,0.77899783,3933.3,3933.2,0.90360147]
[1761294758054,1.80934963,3933.3,3933.2,0.00292147]
[1761294758857,1.80934963,3933.3,3933.2,0.68810147]
[1761294759653,1.80934963,3933.3,3933.2,0.23052147]
[1761294759859,1.80934963,3933.3,3933.2,0.00292147]
[1761294760357,2.06300178,3933.3,3933.2,0.00292147]
[1761294760659,0.7762,3932.4,3932.3,1.23508]
[1761294760860,0.5727818,3932.4,3932.3,1.23508]
[1761294761065,0.5423,3932.6,3932.5,1.23506]
[1761294761262,1.11631958,3932.6,3932.5,1.23506]
[1761294762850,1.35021958,3932.6,3932.5,0.45766]
[1761294763160,1.35021958,3932.6,3932.5,0.68844908]
[1761294763657,1.35021958,3932.6,3932.5,1.23824908]
[1761294764060,0.57401958,3932.6,3932.5,1.31904908]
[1761294764255,1.11706751,3932.8,3932.7,1.23504]
[1761294764456,1.60502849,3932.8,3932.7,1.23504]
[1761294764761,1.60502849,3932.8,3932.7,0.45764]
[1761294764954,0.225,3932.6,3932.5,0.00318908]
[1761294765154,1.48782228,3932.6,3932.5,0.00318908]
[1761294765353,2.06258979,3932.6,3932.5,0.00318908]
[1761294765551,2.96878805,3932.6,3932.5,0.00318908]
[1761294765752,2.06258979,3932.6,3932.5,0.00318908]
[1761294765964,2.06258979,3932.6,3932.5,0.23078908]
[1761294766457,1.60493979,3932.6,3932.5,1.23824908]
[1761294766854,1.37103979,3932.6,3932.5,1.23824908]
[1761294767262,2.27723805,3932.6,3932.5,1.23824908]
[1761294767564,0.82873979,3932.6,3932.5,1.31904908]
[1761294767765,0.57476751,3932.6,3932.5,1.31904908]
[1761294769551,0.6721,3933.0,3932.9,0.68521]
[1761294769863,1.24692011,3933.0,3932.9,1.23501]
[1761294771162,0.57482011,3933.0,3932.9,1.23501]
[1761294771652,1.48082011,3933.0,3932.9,0.45761]
[1761294771856,0.79982011,3933.0,3932.9,1.23501]
[1761294772064,0.57482011,3933.0,3932.9,1.23501]
[1761294774170,0.89212011,3933.0,3932.9,1.23501]
[1761294774670,0.57482011,3933.0,3932.9,1.23501]
[1761294777169,0.00279783,3933.3,3933.2,1.23498]
[1761294777374,0.57805777,3933.3,3933.2,1.23498]
[1761294778664,0.89535777,3933.3,3933.2,1.23498]
[1761294779064,0.57805777,3933.3,3933.2,1.23498]
[1761294779567,0.57805777,3933.3,3933.2,7.71961619]
[1761294779767,0.00279783,3933.3,3933.2,7.71961619]
[1761294780768,1.43979826,3934.1,3933.3,0.3191]
[1761294780970,0.5336,3934.1,3934.0,0.77]
[1761294781268,1.36272417,3934.1,3934.0,0.77]
[1761294781771,1.36535715,3934.1,3934.0,0.77]
[1761294782167,1.11124806,3934.1,3934.0,0.77]
[1761294782467,1.11124806,3934.1,3934.0,1.22749]
[1761294783668,0.57764806,3934.1,3934.0,1.35489]
[1761294785175,0.00263298,3934.1,3934.0,4.56269]
[1761294786371,2.98e-06,3934.1,3934.0,4.56269]
[1761294786675,3.2078,3934.7,3934.0,4.56269]
[1761294786676,0.3436,3935.0,3934.9,1.22738]
[1761294786876,0.59754528,3935.0,3934.9,1.22738]
[1761294787076,1.2349915,3935.0,3934.9,1.22738]
[1761294787272,1.4539915,3935.0,3934.9,0.90828]
[1761294787467,1.45662083,3935.0,3934.9,0.90828]
[1761294787964,0.57422083,3935.0,3934.9,1.22738]
[1761294788280,0.00262933,3935.0,3934.9,1.22738]
[1761294788578,0.32242933,3935.0,3934.9,1.22738]
[1761294789570,0.53622933,3935.0,3934.9,1.22738]
[1761294789767,0.89302933,3935.0,3934.9,0.45738]
[1761294789979,0.89302933,3935.0,3934.9,9.48938]
[1761294790176,1.4637073,3935.0,3934.9,9.48938]
[1761294790971,1.4637073,3935.0,3934.9,0.45738]
[1761294791278,1.4637073,3935.0,3934.9,9.48838]
[1761294793073,1.4637073,3935.0,3934.9,0.45738]
[1761294793269,0.7526,3934.6,3934.5,3.66523]
[1761294793469,0.7526,3934.6,3934.5,10.80723]
[1761294793671,1.3237843,3934.6,3934.5,10.80723]
[1761294794165,1.3237843,3934.6,3934.5,12.69423]
[1761294794366,1.3237843,3934.6,3934.5,12.92583]
[1761294794566,1.3237843,3934.6,3934.5,13.14513]
[1761294795978,1.3237843,3934.6,3934.5,4.11613]
[1761294796284,1.3237843,3934.6,3934.5,10.25643]
[1761294796578,0.5711843,3934.6,3934.5,10.34123]
[1761294796770,0.3198,3934.9,3934.8,1.22739]
[1761294796975,0.89140136,3934.9,3934.8,1.22739]
[1761294797781,1.10520136,3934.9,3934.8,1.22739]
[1761294798583,1.32420136,3934.9,3934.8,1.22739]
[1761294800273,1.10520136,3934.9,3934.8,1.22739]
[1761294803684,1.32420136,3934.9,3934.8,1.22739]
[1761294803879,1.32420136,3934.9,3934.8,0.90829]
[1761294804275,1.32420136,3934.9,3934.8,1.22739]
[1761294806573,0.57160136,3934.9,3934.8,1.22739]
[1761294806773,0.89140136,3934.9,3934.8,1.22739]
[1761294807185,1.10520136,3934.9,3934.8,1.22739]
[1761294807578,0.57160136,3934.9,3934.8,1.22739]
[1761294807781,0.00262933,3935.0,3934.9,1.22738]
[1761294807981,0.00262933,3935.0,3934.9,13.45718]
[1761294808183,0.57656308,3935.0,3934.9,13.45718]
[1761294808991,1.12089826,3935.8,3935.7,1.22419]
[1761294809285,0.47135121,3935.8,3935.7,10.24419]
[1761294809486,0.79715121,3935.8,3935.7,10.24419]
[1761294809989,0.80026968,3935.8,3935.7,10.24745138]
[1761294810187,0.00311847,3935.8,3935.7,10.24745138]
[1761294810391,0.78611847,3935.8,3935.7,10.24745138]
[1761294811289,0.55791847,3935.8,3935.7,10.24745138]
[1761294811684,0.32891847,3935.8,3935.7,10.24645138]
[1761294812188,0.55791847,3935.8,3935.7,10.24645138]
[1761294812398,0.55791847,3935.8,3935.7,10.24545138]
[1761294814190,0.32891847,3935.8,3935.7,10.24545138]
[1761294816284,0.00311847,3935.8,3935.7,10.24545138]
[1761294816788,0.78611847,3935.8,3935.7,0.89755138]
[1761294816987,0.78611847,3935.8,3935.7,10.23545138]
[1761294818496,0.78611847,3935.8,3935.7,9.91255138]
[1761294818689,0.78611847,3935.8,3935.7,0.46055138]
[1761294818884,2.40597057,3935.8,3935.7,0.00326138]
[1761294819089,1.94869057,3935.8,3935.7,0.46055138]
[1761294819289,1.04249231,3935.8,3935.7,0.46055138]
[1761294819494,1.94869057,3935.8,3935.7,0.46055138]
[1761294819893,2.40597057,3935.8,3935.7,0.46055138]
[1761294820094,2.40597057,3935.8,3935.7,0.00326138]
[1761294820891,2.9750252,3935.8,3935.7,0.00326138]
[1761294821701,7.06882694,3935.8,3935.7,0.00326138]
[1761294824200,8.42812434,3935.8,3935.7,0.00326138]
[1761294825402,3.42812434,3935.8,3935.7,0.00326138]
[1761294825702,3.42812434,3935.8,3935.7,0.46055138]
[1761294830105,3.42812434,3935.8,3935.7,0.00326138]
[1761294831100,2.06882694,3935.8,3935.7,0.00326138]
[1761294831404,2.06882694,3935.8,3935.7,0.46055138]
[1761294832207,2.06882694,3935.8,3935.7,0.00326138]
[1761294833107,2.06882694,3935.8,3935.7,0.46055138]
[1761294834208,2.06882694,3935.8,3935.7,0.69055138]
[1761294834700,1.61154694,3935.8,3935.7,0.69055138]
[1761294835512,1.61154694,3935.8,3935.7,0.46055138]
[1761294835709,3.86441602,3935.8,3935.7,0.46055138]
[1761294837414,2.06882694,3935.8,3935.7,0.46055138]